Cogmind - Beta 14 @@@ ROGUE MODE // 2024.12.09 @ 20:15:15 Player: Alien Result: Destroyed by G-34 Mercenary with Small Laser Performance ------------- Evolutions (0) 0 Regions Visited (1) 200 Robots Destroyed (16) 80 Value Destroyed (358) 358 Prototype IDs (1) 20 Alien Tech Used (0) 0 Bonus (0) 0 TOTAL SCORE: 658 Bonus ------- None Cogmind --------- Core Integrity 0/250 Matter 285/300 Energy 280/280 System Corruption 0% Temperature Cool (6) Movement Walking (190) Ox1 Location -10/Materials Parts ------- > --- POWER (1) -------- Cooled Ion Engine > --- PROPULSION (2) --- Aluminum Leg Aluminum Leg > --- UTILITY (2) ------ Small Storage Unit Hardened Light Armor Plating > --- WEAPON (2) ------- Particle Gun Mini Grenade Launcher > --- INVENTORY (8) ---- Cooled Ion Engine Flight Unit Flight Unit Flight Unit Flight Unit Sensor Array Mini Grenade Launcher Mini Grenade Launcher Peak State ------------ > --- POWER ------------ Cooled Ion Engine > --- PROPULSION ------- Aluminum Leg Aluminum Leg > --- UTILITY ---------- Small Storage Unit Hardened Light Armor Plating > --- WEAPON ----------- Particle Gun Mini Grenade Launcher > --- INVENTORY -------- Cooled Ion Engine Flight Unit Flight Unit Flight Unit Flight Unit Mini Grenade Launcher Mini Grenade Launcher Mini Grenade Launcher [Rating: 13] Favorites ----------- Power Ion Engine Engine Ion Engine Propulsion Aluminum Leg Treads Light Treads Leg Aluminum Leg Utility Small Storage Unit Device Improved Terrain Scanner Storage Small Storage Unit Processor Transport Network Coupler Protection Hardened Light Armor Plating Weapon Assault Rifle Energy Gun Particle Gun Ballistic Gun Assault Rifle Launcher Mini Grenade Launcher Build | -11 -10 ------- Run | Yrd Mat Slots Evolved . | . . Power . | . . Propulsion . | . . Utility . | . . Weapon . | . . Parts Attached 18 | 7 11 Power 3 | 1 2 Engine 3 | 1 2 Core . | . . Reactor . | . . Propulsion 5 | 2 3 Treads 2 | 2 . Leg 3 | . 3 Wheel . | . . Hover . | . . Flight . | . . Utility 4 | 2 2 Device 1 | 1 . Storage 1 | 1 . Processor 1 | . 1 Hackware . | . . Protection 1 | . 1 Artifact . | . . Weapon 6 | 2 4 Energy Gun 2 | . 2 Energy Cannon . | . . Ballistic Gun 3 | 2 1 Ballistic Cannon . | . . Launcher 1 | . 1 Special Weapon . | . . Impact Weapon . | . . Slashing Weapon . | . . Piercing Weapon . | . . Special Melee Weapon . | . . Unidentified Prototypes 1 | . 1 Parts Lost 6 | . 6 Power 1 | . 1 Propulsion 2 | . 2 Utility 1 | . 1 Weapon 2 | . 2 Highest Loss Streak 6 | . 6 To Critical Strikes . | . . Average Slot Usage (%) 82 | . 82 Engine 10 | . 10 Treads 4 | . 4 Leg 18 | . 18 Device 1 | . 1 Storage 14 | . 14 Processor 1 | . 1 Protection 6 | . 6 Energy Gun 9 | . 9 Ballistic Gun 7 | . 7 Launcher 6 | . 6 Peak Build Rating 13 | 9 13 Average Rating 8 | 5 9 On Entrance 4 | . 9 Naked Turns . | . . Heaviest Build 22 | 15 22 Greatest Support 40 | 40 40 Greatest Overweight (x) 2 | 2 2 Average Overweight (x) . | . . Largest Inventory Capacity 8 | 8 8 Average Capacity 7 | 7 8 Most Carried 8 | 8 8 Average Carried 7 | 5 7 Final Capacity 8 | 8 8 Final Carried 8 | 8 8 Class Distribution -------------------- 100% | Mutant Dominant Class ---------------- Mutant | -10/Materials Resources | -11 -10 ----------- Run | Yrd Mat Matter Collected 512 | 259 253 Remotely . | . . Salvage Created 514 | 70 444 Parts 32 | 8 24 Haulers Intercepted 1 | . 1 Recyclers Shooed 2 | 1 1 Parts Field Recycled . | . . Retrieved Matter . | . . Parts Self-Destructed . | . . Prevented . | . . Kills | -11 -10 ------- Run | Yrd Mat Combat Hostiles Destroyed 7 | . 7 Guns 5 | . 5 AOE 2 | . 2 Classes Destroyed 6 | 1 5 Worker 2 | . 2 Tunneler 4 | 4 . Hauler 1 | . 1 Recycler 1 | . 1 Watcher 1 | . 1 Grunt 7 | . 7 Best Kill Streak 6 | 2 6 Combat Bots Only 4 | . 4 Max Kills in Single Turn 2 | 1 2 Gunslinging . | . . Exploded 1 | . 1 Melee . | . . Uniques/NPCs Destroyed . | . . Combat | -11 -10 -------- Run | Yrd Mat Hostile Shots Fired 109 | . 109 Missed 25 | . 25 Damage Taken 1054 | . 1054 Core 256 | . 256 Absorbed by Shields . | . . Core Remaining (%) 100 | 100 . Volleys Fired 56 | 5 51 Largest 2 | 2 2 Hottest 85 | 40 85 Shots Fired 79 | 10 69 Gun 75 | 10 65 Cannon . | . . Launcher 4 | . 4 Special . | . . Kinetic 62 | 10 52 Thermal 13 | . 13 Explosive 4 | . 4 Electromagnetic . | . . Robot Hit Streak 10 | 4 10 Robot Miss Streak 5 | 1 5 Penetration Max . | . . Secondary Targets 1 | . 1 Max Gunslinging Chain 1 | . 1 Shots Hit Robots 46 | 6 40 Core Hits 29 | 4 25 Critical Kills 1 | . 1 Critical Parts Destroyed 1 | 1 . Critical Strikes 2 | 1 1 Destroy 2 | 1 1 Melee Attacks . | . . Impact . | . . Slashing . | . . Piercing . | . . Sneak Attacks . | . . Combat Hostiles . | . . Follow-up Attacks . | . . Damage Inflicted 862 | 78 784 Guns 523 | 70 453 Cannons . | . . Explosions 331 | . 331 Melee . | . . Ramming 8 | 8 . Kinetic 395 | 70 325 Thermal 128 | . 128 Explosive 331 | . 331 Electromagnetic . | . . Impact . | . . Slashing . | . . Piercing . | . . Highest Corruption . | . . Average Corruption . | . . Corruption Purged . | . . Corruption Blocked . | . . Overload Shots . | . . Overflow Damage . | . . Projectiles . | . . Explosions . | . . Melee . | . . Knockbacks . | . . Impact . | . . Kinetic . | . . Secondary . | . . Self-Inflicted Damage . | . . Shots . | . . Rammed 3 | 3 . Targets Rammed 3 | 3 . Kicked . | . . Crushed . | . . Highest Temperature 102 | . 102 Average Temperature 39 | . 39 Received Heat Transfer 615 | . 615 Siege Activations . | . . Robots Corrupted . | . . Combat Hostiles . | . . Parts Fried . | . . Impact Corruptions . | . . Robots Melted . | . . Combat Hostiles . | . . Parts Melted . | . . Heat Transferred 296 | . 296 Parts Sabotaged . | . . Parts Stolen . | . . Parts Stripped . | . . Power Chain Reactions . | . . Alert | -11 -10 ------- Run | Yrd Mat Peak Influence 222 | 20 222 Initial 13 | . 13 Average 63 | 7 84 Maximum Alert Level 1 | . 1 Low Security (%) 94 | 100 92 Level 1 5 | . 7 Level 2 . | . . Level 3 . | . . Level 4 . | . . Level 5 . | . . High Security . | . . Max Security . | . . Squads Dispatched 2 | . 2 Investigation . | . . Extermination . | . . Reinforcement 2 | . 2 Assault . | . . Garrison . | . . Intercept . | . . Searches Triggered . | . . Construction Impeded . | . . Haulers Reinforced . | . . Active Scanning Responses . | . . Cargo Convoy Interrupts . | . . Stealth | -11 -10 --------- Run | Yrd Mat Distress Signals 1 | . 1 Communications Jammed . | . . Distress Signals . | . . Times Spotted 12 | . 12 Peak Tracking Total 5 | . 5 Tactical Retreats . | . . Traps | -11 -10 ------- Run | Yrd Mat Traps Triggered . | . . Indirectly . | . . Trap Hack Attempts . | . . Triggered . | . . Disarmed . | . . Reprogrammed . | . . Reused . | . . Traps Extracted . | . . Installed . | . . Triggered . | . . Machines | -11 -10 ---------- Run | Yrd Mat Machines Disabled 4 | . 4 Max in Single Turn 2 | . 2 Machines Repaired . | . . Machines Dismantled . | . . Machines Sabotaged . | . . Overloaded Fab Kills . | . . Hacking | -11 -10 --------- Run | Yrd Mat Machines Accessed 2 | . 2 Terminals 2 | . 2 Fabricators . | . . Repair Stations . | . . Recycling Units . | . . Scanalyzers . | . . Garrison Access . | . . Total Hacks 5 | . 5 Successful 2 | . 2 Failed 3 | . 3 Catastrophic 1 | . 1 Database Lockouts . | . . Manual 4 | . 4 Terminals 5 | . 5 Fabricators . | . . Repair Stations . | . . Recycling Units . | . . Scanalyzers . | . . Garrison Access . | . . Terminal Hacks 2 | . 2 Robot Analysis 2 | . 2 Fabricator Hacks . | . . Repair Station Hacks . | . . Recycling Unit Hacks . | . . Scanalyzer . | . . Garrison Access Hacks . | . . Unauthorized Hacks . | . . Terminals . | . . Fabricators . | . . Repair Stations . | . . Recycling Units . | . . Scanalyzers . | . . Garrison Access . | . . Data Cores Recovered . | . . Used . | . . Hacking Detections 2 | . 2 Full Trace Events . | . . Feedback Events . | . . Feedback Blocked . | . . Robot Schematics Acquired . | . . Robots Built . | . . Authchips . | . . Time . | . . Total Robot Build Rating . | . . Part Schematics Acquired . | . . Parts Built . | . . Authchips . | . . Time . | . . Total Part Build Rating . | . . Parts Repaired . | . . Time . | . . Parts Recycled . | . . Recycled Matter . | . . Retrieved Matter . | . . Retrieved Components . | . . Parts Scanalyzed . | . . Part Schematics Acquired . | . . Parts Damaged . | . . Bothacking | -11 -10 ------------ Run | Yrd Mat Used RIF Installer . | . . Robots Hacked . | . . Non-combat . | . . Combat . | . . Robot Hacks Applied . | . . Relay Couplers Released . | . . Fabnet Peak Effective % . | . . Robots Rewired . | . . Allies Hacked . | . . Hacks Repelled . | . . Allies | -11 -10 -------- Run | Yrd Mat Total Allies . | . . Largest Group . | . . Highest-Rated Group . | . . Highest-Rated Ally . | . . Total Orders . | . . Ally Attacks . | . . Total Damage . | . . Kills . | . . Allies Corrupted . | . . Allies Melted . | . . Intel | -11 -10 ------- Run | Yrd Mat Robot Analysis Total 2 | . 2 Derelict Logs Recovered . | . . Drone Launches . | . . Drone Recoveries . | . . Exploration | -11 -10 ------------- Run | Yrd Mat Turns Passed 596 | 160 436 Spaces Moved 254 | 84 170 Core 29 | 20 9 Treads 86 | 64 22 Legs 139 | . 139 Wheels . | . . Hover . | . . Flight . | . . Fastest Speed 50 | 50 100 Average Speed 155 | 142 161 Slowest Speed 190 | 160 190 Overloaded Moves . | . . Propulsion Burnouts . | . . Robots Hopped . | . . Cave-ins Triggered . | . . Exploration Rate (%) 19 | 5 34 Regions Visited 1 Branch Regions . Pre-discovered Areas . | . . Known Exits Taken . | . . Unknown Exits Taken 1 | 1 . Scrap Searched . | . . Spaces Dug . | . . Terrain Destroyed 19 | . 19 Melee . | . . Projectile . | . . AOE 19 | . 19 Terrain Rammed . | . . Walls Destroyed . | . . Machines Disabled . | . . Actions | -11 -10 --------- Run | Yrd Mat Total 377 | 109 268 Wait 16 | 3 13 Move 253 | 83 170 Hop . | . . Pick Up 18 | 8 10 Fast Attach 15 | 7 8 Attach 2 | . 2 Detach 2 | . 2 Swap 1 | . 1 Drop 11 | . 11 Fire 56 | 5 51 Melee . | . . Ram . | . . Kick . | . . Crush 3 | 3 . Escape Stasis . | . . Rewire . | . . Trap . | . . Miscellaneous . | . . Route ------- -11/Scrapyard -10/Materials (discovered 1 exit: [*Mat]) History --------- Turn | Location | Event 15 | -11/Scrapyard | Discovered new exit (range 14) 161 | -11/Scrapyard | Entered Materials 255 | -10/Materials | Core integrity fell below 50% 264 | -10/Materials | Core integrity fell below 20% 280 | -10/Materials | Lost 6 parts (1p2n1u2w) 317 | -10/Materials | Build established: Mutant 503 | -10/Materials | Discovered new exit (range 16) 597 | -10/Materials | Destroyed by G-34 Mercenary with Small Laser Last Messages --------------- 00556_ Acquired 24 matter. 00556_ U-05 Engineer lays Concrete. 00560_ Dropped Mni. Grenade Launcher. 00560_ U-05 Engineer lays Concrete. 00560_ Acquired Sensor Array. 00560_ U-05 Engineer builds a Wall. 00561_ K-01 Serf collects debris. 00561_ U-05 Engineer lays Concrete. 00566_ K-01 Serf collects debris. 00566_ U-05 Engineer lays Concrete. 00567_ U-05 Engineer builds a Wall. 00570_ U-05 Engineer lays Concrete. 00571_ K-01 Serf collects debris. 00572_ U-05 Engineer lays Concrete. 00575_ U-05 Engineer builds a Wall. 00583_ U-05 Engineer lays Concrete. 00591_ U-05 Engineer builds a Wall. 00596_ G-34 Mercenary destroyed. 00596_ Hadron Collector disabled. 00596_ K-01 Serf destroyed. Map ----- +----------------------------------------------------+ | ??????????????????????????????????????????????? | | ??????????????????????????????????????????????? | | ??????????????????????????????????????????????? | | ??????????????????????????????????????????????? | | ??????????????????????????????????????????????? | | ??????????????????????????????????????????????? | | ?????????????????? ??????????????????????????? | | ?????????????????" "??? ??????????????????? | | ????????????????"" "??" ??????????????????? | | ???????????????? ?? ??????????????????? | | ???????????????? ?? g ??????????????????? | | ????????????????" """" ?????????????????? | | ????????????????" "" ?????????????????? | | ????????"??????"" "" go #?????????????????? | | ????????? ? %g #?????????????????? | | ????????? ! ??????????????????? | | ?????????""" """" """ ??????????????????? | | ?????????""" """" "" ??????????????????? | | ??????? """" """" "" % ??????????????????? | | ??????? ^ =#??????????????????? | | ???????? ^ #??????????????????? | | ???????????" """" ]* #??????????????????? | | ??????????"" """" == ############???????? | | ????????"""" """" = ^ #???????? | | ????? ^ < #???????? | | ????? uu@ #???????? | | ????? ^ k ##########+####???????? | | ????? ############# # #??????????????? | | ???????????????????# # # "" #??????????????? | | ??????? ???????????# # # T" #??????????????? | | ????? ????########## ## "" #??????????????? | | ????? ????# # ## #??????????????? | | ????? ????# """ # T# #??????????????? | | ?????# ???# """ # ## * #??????????????? | | ?????# ???# """ # ## #??????????????? | | ?????# ???# # ####+###########??????? | | ?????# ???# """ + ## #??????? | | ?????# ???# """ # + #??????? | | ?????# ???# """ # ## #??????? | | ?????# ???# # ## #??????? | | ???#?# ##########+## ## #??????? | | ?????# % % ## #??????? | | ?????# % ## #??????? | | ?????# =! "" !! T" ## #??????? | | ?????# = """ ! % ## #####??? | | ?????# ! """ ! ########+##= #??? | | ????## [ ##### | #??? | | ?????# *!#??? | | ?????# ^ ***#??? | | ?????# #####+## ##### | !#??? | +----------------------------------------------------+ Best States ------------- Heat Dissipation 25 Energy Generation 14 Energy Capacity 280 Matter Stores 300 Matter Capacity 300 Sight Range 16 Terrain Scan Range 16 Terrain Scan Density 10 Armor Coverage 150 Evasion (%) 55 Recoil Reduction 2 Item Schematics ----------------- None Robot Schematics ------------------ None Fabricated ------------ Nothing Alien Tech Used ----------------- None Achievements -------------- None Challenges ------------ None Game ------ Seed TargetCannonAxe Manual? 0 Play Time 00:10:40 Cumulative 33.4 hours Start 2024.12.09 @ 20:06:40 End 2024.12.09 @ 20:15:15 Sessions 1 Manual Loads 0 Difficulty Rogue Special Mode None Game No. 37 Rogue 37 Adventurer 0 Explorer 0 Win Type - Total 0 Types 0/0/0/0/0/0/0/0/0 Lore% 17 Gallery% 31 Achievement% 36 Wizard Run 0 Options --------- Layout 0 ASCII 0 Keyboard 1 Movement Numpad Keybinds 0 Fullscreen 1 Font 24/Smallcaps Map View 76x56 Zoom Use 0% Tactical HUD 1 Map Filters NONE Filters NONE Steam 1 RUN: c41e742f-c3d1-42cb-a4dc-20904d860ffb